[Event "Early-Titled-Tuesday-Blitz-February-13-2024"]
[Site "Chess.com"]
[Date "2024.02.13"]
[Round "4"]
[White "ansko1999"]
[Black "semchik73"]
[Result "1-0"]
[WhiteElo "2681"]
[BlackElo "2429"]
[TimeControl "180+1"]
[EndTime "8:43:54 PST"]
[Termination "ansko1999 won by checkmate"]

1. Nf3 {[%clk 0:03:00.9]} 1... d5 {[%clk 0:02:59.5]} 2. e3 {[%clk 0:03:00.1]}
2... Nf6 {[%clk 0:02:59.2]} 3. b3 {[%clk 0:03:00]} 3... g6 {[%clk 0:02:58.3]} 4.
Bb2 {[%clk 0:03:00.1]} 4... Bg7 {[%clk 0:02:58.9]} 5. c4 {[%clk 0:02:56]} 5...
c6 {[%clk 0:02:54.7]} 6. Be2 {[%clk 0:02:53.5]} 6... O-O {[%clk 0:02:54.3]} 7.
O-O {[%clk 0:02:53.3]} 7... Nbd7 {[%clk 0:02:52]} 8. Nc3 {[%clk 0:02:47.2]} 8...
Ne4 {[%clk 0:02:50.4]} 9. Qc2 {[%clk 0:02:44.1]} 9... Ndf6 {[%clk 0:02:46.7]}
10. d3 {[%clk 0:02:37.9]} 10... Nxc3 {[%clk 0:02:38.4]} 11. Bxc3 {[%clk
0:02:38.8]} 11... Bf5 {[%clk 0:02:37.1]} 12. Qb2 {[%clk 0:02:29.5]} 12... dxc4
{[%clk 0:02:26.6]} 13. bxc4 {[%clk 0:02:27.1]} 13... Qb6 {[%clk 0:02:24.8]} 14.
Rab1 {[%clk 0:02:19.7]} 14... Qxb2 {[%clk 0:02:23.3]} 15. Rxb2 {[%clk
0:02:20.6]} 15... b6 {[%clk 0:02:22.4]} 16. a4 {[%clk 0:02:10.8]} 16... Rfd8
{[%clk 0:02:20.8]} 17. Rd1 {[%clk 0:02:01.8]} 17... Nd7 {[%clk 0:02:06.3]} 18.
Bxg7 {[%clk 0:01:59.6]} 18... Kxg7 {[%clk 0:02:06.6]} 19. Nd4 {[%clk 0:01:54.4]}
19... Rac8 {[%clk 0:01:39.8]} 20. g4 {[%clk 0:01:44.6]} 20... e5 {[%clk
0:01:31.9]} 21. Nxf5+ {[%clk 0:01:38.6]} 21... gxf5 {[%clk 0:01:32]} 22. gxf5
{[%clk 0:01:39.5]} 22... Nc5 {[%clk 0:01:31.2]} 23. a5 {[%clk 0:01:21.7]} 23...
bxa5 {[%clk 0:01:28.6]} 24. Ra2 {[%clk 0:01:22.3]} 24... a4 {[%clk 0:01:21.5]}
25. d4 {[%clk 0:01:22.2]} 25... exd4 {[%clk 0:01:14.2]} 26. exd4 {[%clk
0:01:17.3]} 26... Ne4 {[%clk 0:01:13.8]} 27. Rd3 {[%clk 0:01:08.6]} 27... c5
{[%clk 0:00:54.3]} 28. d5 {[%clk 0:01:05.7]} 28... Rb8 {[%clk 0:00:47.2]} 29.
Re3 {[%clk 0:00:51.4]} 29... Nd6 {[%clk 0:00:38.8]} 30. Rxa4 {[%clk 0:00:51.1]}
30... Nxf5 {[%clk 0:00:36.9]} 31. Re5 {[%clk 0:00:37.6]} 31... Kf6 {[%clk
0:00:36.8]} 32. f4 {[%clk 0:00:31.8]} 32... Nd4 {[%clk 0:00:30.1]} 33. Rxa7
{[%clk 0:00:29.5]} 33... Rb6 {[%clk 0:00:20.5]} 34. Kf2 {[%clk 0:00:28.7]} 34...
Rg8 {[%clk 0:00:18.6]} 35. Bh5 {[%clk 0:00:24.9]} 35... Rb2+ {[%clk 0:00:17.7]}
36. Be2 {[%clk 0:00:21.2]} 36... Rg4 {[%clk 0:00:15.3]} 37. Ra6+ {[%clk
0:00:13.9]} 37... Kg7 {[%clk 0:00:12.8]} 38. Re4 {[%clk 0:00:12.3]} 38... Nxe2
{[%clk 0:00:10.8]} 39. Kf3 {[%clk 0:00:05.5]} 39... Rxf4+ {[%clk 0:00:07.3]} 40.
Rxf4 {[%clk 0:00:06]} 40... Nxf4 {[%clk 0:00:07.6]} 41. Kxf4 {[%clk 0:00:06.7]}
41... Rb4 {[%clk 0:00:07.8]} 42. Ke5 {[%clk 0:00:06]} 42... Rxc4 {[%clk
0:00:08.2]} 43. d6 {[%clk 0:00:05.3]} 43... Rd4 {[%clk 0:00:08.6]} 44. Ra5
{[%clk 0:00:05.3]} 44... f6+ {[%clk 0:00:07.6]} 45. Ke6 {[%clk 0:00:05.9]} 45...
c4 {[%clk 0:00:06.7]} 46. d7 {[%clk 0:00:04.7]} 46... c3 {[%clk 0:00:04.6]} 47.
Rc5 {[%clk 0:00:05.1]} 47... Rd3 {[%clk 0:00:04.5]} 48. Ke7 {[%clk 0:00:02.7]}
48... Re3+ {[%clk 0:00:03.6]} 49. Kd8 {[%clk 0:00:02.9]} 49... Rd3 {[%clk
0:00:03]} 50. Kc8 {[%clk 0:00:02]} 50... c2 {[%clk 0:00:02.6]} 51. Rxc2 {[%clk
0:00:01.8]} 51... Kg6 {[%clk 0:00:03.1]} 52. d8=Q {[%clk 0:00:02.4]} 52... Rxd8+
{[%clk 0:00:03.3]} 53. Kxd8 {[%clk 0:00:03.3]} 53... f5 {[%clk 0:00:03.8]} 54.
Ke7 {[%clk 0:00:04]} 54... Kg5 {[%clk 0:00:04.3]} 55. Ke6 {[%clk 0:00:04]} 55...
f4 {[%clk 0:00:04.2]} 56. Ke5 {[%clk 0:00:04.5]} 56... Kg4 {[%clk 0:00:04.9]}
57. Ke4 {[%clk 0:00:05]} 57... f3 {[%clk 0:00:05.4]} 58. Rf2 {[%clk 0:00:05.6]}
58... h5 {[%clk 0:00:06]} 59. Rxf3 {[%clk 0:00:05.4]} 59... h4 {[%clk
0:00:06.7]} 60. h3+ {[%clk 0:00:05.5]} 60... Kg5 {[%clk 0:00:06.8]} 61. Rf4
{[%clk 0:00:06.2]} 61... Kh5 {[%clk 0:00:07.1]} 62. Rg4 {[%clk 0:00:06.6]} 62...
Kh6 {[%clk 0:00:07.3]} 63. Kf5 {[%clk 0:00:07.1]} 63... Kh5 {[%clk 0:00:07.6]}
64. Kf6 {[%clk 0:00:07.5]} 64... Kh6 {[%clk 0:00:07.9]} 65. Rxh4# {[%clk
0:00:08.1]} 1-0

[Event "Early-Titled-Tuesday-Blitz-February-13-2024"]
[Site "Chess.com"]
[Date "2024.02.13"]
[Round "4"]
[White "Rurep26"]
[Black "dropstoneDP"]
[Result "1/2-1/2"]
[WhiteElo "2745"]
[BlackElo "3060"]
[TimeControl "180+1"]
[EndTime "8:43:55 PST"]
[Termination "Game drawn by repetition"]

1. d4 {[%clk 0:03:00.9]} 1... d5 {[%clk 0:02:58.7]} 2. Bf4 {[%clk 0:02:56.6]}
2... c5 {[%clk 0:02:56.6]} 3. e3 {[%clk 0:02:54.7]} 3... Nc6 {[%clk 0:02:57.2]}
4. c3 {[%clk 0:02:53.6]} 4... Nf6 {[%clk 0:02:54.5]} 5. Nd2 {[%clk 0:02:53.1]}
5... Bf5 {[%clk 0:02:50.6]} 6. Qb3 {[%clk 0:02:52.2]} 6... Qc8 {[%clk
0:02:44.4]} 7. dxc5 {[%clk 0:02:44.1]} 7... e6 {[%clk 0:02:25.2]} 8. Ngf3 {[%clk
0:02:36.3]} 8... Bxc5 {[%clk 0:02:14.4]} 9. Be2 {[%clk 0:02:34.1]} 9... O-O
{[%clk 0:02:10.6]} 10. h3 {[%clk 0:02:31.7]} 10... h6 {[%clk 0:02:09.5]} 11. O-O
{[%clk 0:02:31]} 11... a6 {[%clk 0:02:07.5]} 12. Qd1 {[%clk 0:02:28.3]} 12...
Ba7 {[%clk 0:02:00.2]} 13. Nd4 {[%clk 0:02:25]} 13... Bh7 {[%clk 0:01:58.2]} 14.
Rc1 {[%clk 0:02:20.3]} 14... Re8 {[%clk 0:01:54.9]} 15. N2f3 {[%clk 0:02:14.3]}
15... Ne4 {[%clk 0:01:53]} 16. Nxc6 {[%clk 0:02:07.6]} 16... bxc6 {[%clk
0:01:47]} 17. c4 {[%clk 0:02:02.3]} 17... Qb7 {[%clk 0:01:45.3]} 18. b3 {[%clk
0:01:48.5]} 18... Rad8 {[%clk 0:01:40]} 19. Qe1 {[%clk 0:01:47.3]} 19... Bb6
{[%clk 0:01:30.9]} 20. cxd5 {[%clk 0:01:44.6]} 20... cxd5 {[%clk 0:01:31.8]} 21.
Qb4 {[%clk 0:01:39.9]} 21... Qa7 {[%clk 0:01:27.9]} 22. Qa4 {[%clk 0:01:35.1]}
22... Nc5 {[%clk 0:01:21.3]} 23. Qa3 {[%clk 0:01:33.2]} 23... Nd3 {[%clk
0:01:12]} 24. Bxd3 {[%clk 0:01:29]} 24... Bxd3 {[%clk 0:01:12.9]} 25. Rfe1
{[%clk 0:01:28.1]} 25... f6 {[%clk 0:01:10.2]} 26. Bd6 {[%clk 0:01:22.3]} 26...
e5 {[%clk 0:01:05.9]} 27. Bc5 {[%clk 0:01:22.1]} 27... Rc8 {[%clk 0:00:59.9]}
28. Bxb6 {[%clk 0:00:54]} 28... Qxb6 {[%clk 0:01:00.8]} 29. Qa4 {[%clk
0:00:54.7]} 29... Qb7 {[%clk 0:00:35.9]} 30. Qa5 {[%clk 0:00:37.3]} 30... Bb5
{[%clk 0:00:32.8]} 31. Qd2 {[%clk 0:00:26.9]} 31... Bd7 {[%clk 0:00:30.3]} 32.
Red1 {[%clk 0:00:24.9]} 32... Be6 {[%clk 0:00:29.6]} 33. Ne1 {[%clk 0:00:25.2]}
33... Rxc1 {[%clk 0:00:27.3]} 34. Rxc1 {[%clk 0:00:26.1]} 34... d4 {[%clk
0:00:17.9]} 35. exd4 {[%clk 0:00:25.4]} 35... Rd8 {[%clk 0:00:18.5]} 36. Nc2
{[%clk 0:00:18]} 36... Bf5 {[%clk 0:00:17.5]} 37. Ne3 {[%clk 0:00:17.7]} 37...
Rxd4 {[%clk 0:00:17.1]} 38. Qa5 {[%clk 0:00:17.4]} 38... Be6 {[%clk 0:00:14.6]}
39. Rc7 {[%clk 0:00:14.3]} 39... Qb5 {[%clk 0:00:15]} 40. Qa3 {[%clk 0:00:09.8]}
40... Rd7 {[%clk 0:00:11.9]} 41. Rc8+ {[%clk 0:00:08.4]} 41... Kh7 {[%clk
0:00:11.9]} 42. Qf8 {[%clk 0:00:09.1]} 42... Rf7 {[%clk 0:00:03.8]} 43. Qg8+
{[%clk 0:00:08.8]} 43... Kg6 {[%clk 0:00:04.5]} 44. Rc1 {[%clk 0:00:05.8]} 44...
Rc7 {[%clk 0:00:02.8]} 45. Qxe6 {[%clk 0:00:05.7]} 45... Rxc1+ {[%clk
0:00:03.3]} 46. Kh2 {[%clk 0:00:06.6]} 46... Qc6 {[%clk 0:00:03.9]} 47. Qf5+
{[%clk 0:00:05.4]} 47... Kf7 {[%clk 0:00:04.5]} 48. Nc4 {[%clk 0:00:05.9]} 48...
Rxc4 {[%clk 0:00:03.7]} 49. bxc4 {[%clk 0:00:05.7]} 49... Qxc4 {[%clk
0:00:04.4]} 50. Qd7+ {[%clk 0:00:06.3]} 50... Kg6 {[%clk 0:00:04.2]} 51. g3
{[%clk 0:00:04.6]} 51... Qxa2 {[%clk 0:00:03.5]} 52. Qg4+ {[%clk 0:00:04.2]}
52... Kh7 {[%clk 0:00:03.4]} 53. Qf5+ {[%clk 0:00:04.9]} 53... Kh8 {[%clk
0:00:03.9]} 54. Qc8+ {[%clk 0:00:03.9]} 54... Kh7 {[%clk 0:00:04.5]} 55. Qf5+
{[%clk 0:00:04.6]} 55... Kg8 {[%clk 0:00:05.1]} 56. Qc8+ {[%clk 0:00:05.1]}
56... Kf7 {[%clk 0:00:05.6]} 57. Qd7+ {[%clk 0:00:05.8]} 57... Kg6 {[%clk
0:00:05.3]} 58. Qg4+ {[%clk 0:00:05.6]} 58... Kh7 {[%clk 0:00:05.9]} 59. Qf5+
{[%clk 0:00:06.2]} 1/2-1/2

[Event "Early-Titled-Tuesday-Blitz-February-13-2024"]
[Site "Chess.com"]
[Date "2024.02.13"]
[Round "4"]
[White "GOGIEFF"]
[Black "scarabee43"]
[Result "1-0"]
[WhiteElo "3020"]
[BlackElo "2872"]
[TimeControl "180+1"]
[EndTime "8:43:56 PST"]
[Termination "GOGIEFF won by resignation"]

1. c4 {[%clk 0:03:00.9]} 1... e6 {[%clk 0:02:58.8]} 2. Nf3 {[%clk 0:02:59.6]}
2... d5 {[%clk 0:02:58.7]} 3. g3 {[%clk 0:03:00]} 3... Nf6 {[%clk 0:02:58.8]} 4.
Bg2 {[%clk 0:03:00.3]} 4... Be7 {[%clk 0:02:59.5]} 5. O-O {[%clk 0:03:00.1]}
5... O-O {[%clk 0:02:59.8]} 6. d4 {[%clk 0:03:00.4]} 6... Nbd7 {[%clk
0:02:57.6]} 7. Qc2 {[%clk 0:02:48]} 7... c6 {[%clk 0:02:52.2]} 8. Nbd2 {[%clk
0:02:45.2]} 8... b6 {[%clk 0:02:41.3]} 9. e4 {[%clk 0:02:42.4]} 9... dxc4 {[%clk
0:02:25.7]} 10. Nxc4 {[%clk 0:02:36.4]} 10... Ba6 {[%clk 0:02:26.1]} 11. b3
{[%clk 0:02:22.5]} 11... c5 {[%clk 0:02:11.1]} 12. d5 {[%clk 0:02:22.4]} 12...
exd5 {[%clk 0:02:11]} 13. exd5 {[%clk 0:02:23.3]} 13... b5 {[%clk 0:01:23.4]}
14. Nce5 {[%clk 0:02:14.8]} 14... Nxe5 {[%clk 0:01:23.7]} 15. Nxe5 {[%clk
0:02:15.4]} 15... Bd6 {[%clk 0:01:00.7]} 16. Nc6 {[%clk 0:02:12.5]} 16... Qb6
{[%clk 0:00:57]} 17. Bb2 {[%clk 0:02:10.3]} 17... Nd7 {[%clk 0:00:36.6]} 18. Qf5
{[%clk 0:02:07.5]} 18... Bc8 {[%clk 0:00:35.4]} 19. Qh5 {[%clk 0:01:47.8]} 19...
f5 {[%clk 0:00:20.6]} 20. Rae1 {[%clk 0:01:33.7]} 20... Bb7 {[%clk 0:00:19]} 21.
Re6 {[%clk 0:01:29]} 21... Qc7 {[%clk 0:00:19.1]} 22. Bxg7 {[%clk 0:01:16.8]}
22... Kxg7 {[%clk 0:00:17]} 23. Qh6+ {[%clk 0:01:14.6]} 23... Kh8 {[%clk
0:00:17.1]} 24. Rxd6 {[%clk 0:01:14.9]} 24... Rae8 {[%clk 0:00:14.6]} 25. Rg6
{[%clk 0:01:10.9]} 25... Nb6 {[%clk 0:00:13.9]} 26. Rg5 {[%clk 0:01:01.1]} 26...
Qf7 {[%clk 0:00:12.6]} 27. Qd6 {[%clk 0:00:56.4]} 27... c4 {[%clk 0:00:12.7]}
28. h4 {[%clk 0:00:53.6]} 28... f4 {[%clk 0:00:09.2]} 29. Nxa7 {[%clk 0:00:49]}
29... Nd7 {[%clk 0:00:06.9]} 30. Nxb5 {[%clk 0:00:48.5]} 30... f3 {[%clk
0:00:06.3]} 31. Bh3 {[%clk 0:00:47.9]} 31... Nf6 {[%clk 0:00:06.9]} 32. Be6
{[%clk 0:00:46.5]} 32... Qe7 {[%clk 0:00:04]} 33. Qxe7 {[%clk 0:00:45.9]} 33...
Rxe7 {[%clk 0:00:04.7]} 34. bxc4 {[%clk 0:00:46.4]} 34... Ne4 {[%clk 0:00:04.7]}
35. Nd6 {[%clk 0:00:39.5]} 35... Nxd6 {[%clk 0:00:04.7]} 36. Rc1 {[%clk
0:00:35]} 36... Ne4 {[%clk 0:00:02.7]} 37. Re5 {[%clk 0:00:35.2]} 37... Nc5
{[%clk 0:00:03.1]} 38. Re3 {[%clk 0:00:33.6]} 38... Rf6 {[%clk 0:00:02.4]} 39.
Rce1 {[%clk 0:00:33]} 39... Kg7 {[%clk 0:00:02.5]} 40. Bg4 {[%clk 0:00:32]}
40... Rxe3 {[%clk 0:00:01.8]} 41. Rxe3 {[%clk 0:00:32.9]} 41... Ba6 {[%clk
0:00:02.3]} 42. Rxf3 {[%clk 0:00:25.7]} 42... Rxf3 {[%clk 0:00:02]} 43. Bxf3
{[%clk 0:00:26]} 43... Bxc4 {[%clk 0:00:02.5]} 44. a3 {[%clk 0:00:26.6]} 44...
Kf6 {[%clk 0:00:02.4]} 45. Kh2 {[%clk 0:00:26.5]} 45... Ke5 {[%clk 0:00:02.8]}
46. h5 {[%clk 0:00:26.6]} 46... Nd3 {[%clk 0:00:02.8]} 47. Kg1 {[%clk
0:00:25.8]} 47... Ne1 {[%clk 0:00:01.9]} 48. Bh1 {[%clk 0:00:23.8]} 48... Bb3
{[%clk 0:00:02.5]} 49. f4+ {[%clk 0:00:23.6]} 49... Kd6 {[%clk 0:00:01.9]} 50.
h6 {[%clk 0:00:22.8]} 50... Nc2 {[%clk 0:00:02]} 51. Be4 {[%clk 0:00:22.8]}
51... Nxa3 {[%clk 0:00:01.6]} 52. Bxh7 {[%clk 0:00:22.8]} 52... Bxd5 {[%clk
0:00:02.2]} 53. Bg6 {[%clk 0:00:23.1]} 53... Bg8 {[%clk 0:00:02.3]} 54. h7
{[%clk 0:00:23.7]} 54... Bxh7 {[%clk 0:00:02.9]} 55. Bxh7 {[%clk 0:00:24.6]}
55... Nc4 {[%clk 0:00:02.9]} 56. Kf2 {[%clk 0:00:24.6]} 56... Ke7 {[%clk
0:00:03.6]} 57. Kf3 {[%clk 0:00:25]} 57... Nd6 {[%clk 0:00:03.8]} 58. Bd3 {[%clk
0:00:25.2]} 58... Kf6 {[%clk 0:00:03.9]} 59. g4 {[%clk 0:00:25.7]} 59... Nf7
{[%clk 0:00:04.4]} 60. Bc4 {[%clk 0:00:25.7]} 60... Nd6 {[%clk 0:00:04.8]} 61.
g5+ {[%clk 0:00:26.2]} 61... Kg6 {[%clk 0:00:04.7]} 62. Bd3+ {[%clk 0:00:26.5]}
62... Kg7 {[%clk 0:00:05.2]} 63. Kg4 {[%clk 0:00:26.9]} 63... Ne8 {[%clk
0:00:05.7]} 64. f5 {[%clk 0:00:27.4]} 64... Nc7 {[%clk 0:00:06.1]} 65. f6+
{[%clk 0:00:27.9]} 65... Kf8 {[%clk 0:00:06.3]} 66. Kf5 {[%clk 0:00:28.2]} 66...
Nd5 {[%clk 0:00:06.5]} 67. g6 {[%clk 0:00:28.7]} 67... Ne3+ {[%clk 0:00:05.1]}
68. Kg5 {[%clk 0:00:26.7]} 68... Kg8 {[%clk 0:00:03.7]} 69. Be4 {[%clk
0:00:24.6]} 69... Kh8 {[%clk 0:00:02.8]} 70. g7+ {[%clk 0:00:23.8]} 70... Kg8
{[%clk 0:00:03.1]} 71. Kg6 {[%clk 0:00:24.2]} 1-0

[Event "Early-Titled-Tuesday-Blitz-February-13-2024"]
[Site "Chess.com"]
[Date "2024.02.13"]
[Round "4"]
[White "sharkarton"]
[Black "Hui_Li_Macau"]
[Result "1-0"]
[WhiteElo "2542"]
[BlackElo "2358"]
[TimeControl "180+1"]
[EndTime "8:44:00 PST"]
[Termination "sharkarton won by resignation"]

1. e4 {[%clk 0:02:57.4]} 1... e5 {[%clk 0:03:00.2]} 2. Nf3 {[%clk 0:02:55.2]}
2... Nf6 {[%clk 0:03:00]} 3. Nxe5 {[%clk 0:02:51]} 3... d6 {[%clk 0:03:00.1]} 4.
Nf3 {[%clk 0:02:46.6]} 4... Nxe4 {[%clk 0:02:59.6]} 5. Nc3 {[%clk 0:02:47.3]}
5... Nxc3 {[%clk 0:02:58.8]} 6. dxc3 {[%clk 0:02:48.2]} 6... Be7 {[%clk
0:02:59.1]} 7. Bd3 {[%clk 0:02:44]} 7... Nc6 {[%clk 0:03:00]} 8. Bf4 {[%clk
0:02:34.6]} 8... Be6 {[%clk 0:02:59.5]} 9. Qe2 {[%clk 0:02:29.5]} 9... Qd7
{[%clk 0:02:57.6]} 10. O-O {[%clk 0:02:25.2]} 10... O-O {[%clk 0:02:55]} 11. Qe4
{[%clk 0:02:22.3]} 11... g6 {[%clk 0:02:47.2]} 12. Bh6 {[%clk 0:02:22]} 12...
Rfe8 {[%clk 0:02:46.6]} 13. Rae1 {[%clk 0:02:14.6]} 13... Bf5 {[%clk 0:02:39.1]}
14. Qf4 {[%clk 0:02:08.6]} 14... Bxd3 {[%clk 0:02:36.3]} 15. cxd3 {[%clk
0:02:09.5]} 15... Bf8 {[%clk 0:01:56]} 16. h4 {[%clk 0:01:34.3]} 16... Rxe1
{[%clk 0:01:41.9]} 17. Rxe1 {[%clk 0:01:32.1]} 17... Re8 {[%clk 0:01:41.8]} 18.
Rxe8 {[%clk 0:01:20.6]} 18... Qxe8 {[%clk 0:01:42.7]} 19. h5 {[%clk 0:01:20.1]}
19... Ne5 {[%clk 0:01:21]} 20. Bxf8 {[%clk 0:00:58.4]} 20... Nxf3+ {[%clk
0:00:53.4]} 21. Qxf3 {[%clk 0:00:57.7]} 21... Kxf8 {[%clk 0:00:47.4]} 22. Kf1
{[%clk 0:00:34.1]} 22... Qb5 {[%clk 0:00:32.9]} 23. hxg6 {[%clk 0:00:09.4]}
23... hxg6 {[%clk 0:00:30.7]} 24. b3 {[%clk 0:00:09.9]} 24... Kg7 {[%clk
0:00:18.7]} 25. c4 {[%clk 0:00:06.7]} 25... Qb6 {[%clk 0:00:17.9]} 26. Qe4
{[%clk 0:00:05.1]} 26... c6 {[%clk 0:00:15.2]} 27. g4 {[%clk 0:00:04.3]} 27...
Qc5 {[%clk 0:00:09.9]} 28. Kg2 {[%clk 0:00:03.8]} 28... Qe5 {[%clk 0:00:05.8]}
29. f3 {[%clk 0:00:01.9]} 29... Qxe4 {[%clk 0:00:04.6]} 30. fxe4 {[%clk
0:00:02.7]} 30... g5 {[%clk 0:00:03.9]} 31. Kf3 {[%clk 0:00:03.6]} 31... Kf6
{[%clk 0:00:04.3]} 32. d4 {[%clk 0:00:04.1]} 32... Ke6 {[%clk 0:00:04.5]} 33.
Ke3 {[%clk 0:00:04.6]} 33... Kf6 {[%clk 0:00:02.9]} 34. b4 {[%clk 0:00:03.4]}
34... Ke6 {[%clk 0:00:03.2]} 35. a4 {[%clk 0:00:03.7]} 35... Kf6 {[%clk
0:00:03.4]} 36. a5 {[%clk 0:00:04.3]} 36... a6 {[%clk 0:00:03.3]} 37. Kd3 {[%clk
0:00:03.8]} 37... Ke6 {[%clk 0:00:03.7]} 38. Kc3 {[%clk 0:00:03.4]} 38... Kf6
{[%clk 0:00:04]} 39. Kb3 {[%clk 0:00:04]} 39... Ke6 {[%clk 0:00:04.4]} 40. Ka4
{[%clk 0:00:04.4]} 40... Kd7 {[%clk 0:00:04.6]} 41. b5 {[%clk 0:00:04.6]} 41...
Kc7 {[%clk 0:00:04.9]} 42. bxa6 {[%clk 0:00:04.6]} 42... bxa6 {[%clk 0:00:05.2]}
43. Kb4 {[%clk 0:00:05.2]} 43... Kd7 {[%clk 0:00:04.5]} 44. c5 {[%clk 0:00:05]}
44... Kc7 {[%clk 0:00:03.9]} 45. cxd6+ {[%clk 0:00:05]} 45... Kxd6 {[%clk
0:00:04.8]} 46. Kc4 {[%clk 0:00:05.6]} 46... f6 {[%clk 0:00:05]} 47. Kb4 {[%clk
0:00:05]} 47... Kd7 {[%clk 0:00:05.4]} 48. Kc5 {[%clk 0:00:05.6]} 48... Kc7
{[%clk 0:00:05.9]} 49. d5 {[%clk 0:00:06]} 49... cxd5 {[%clk 0:00:06.5]} 50.
exd5 {[%clk 0:00:06.2]} 50... Kd7 {[%clk 0:00:04.4]} 51. Kc4 {[%clk 0:00:04.9]}
51... Kd6 {[%clk 0:00:03.9]} 52. Kd4 {[%clk 0:00:05.1]} 52... Kd7 {[%clk
0:00:04.3]} 53. Ke4 {[%clk 0:00:05.1]} 53... Kd6 {[%clk 0:00:02.7]} 54. Kf5
{[%clk 0:00:05.4]} 54... Kxd5 {[%clk 0:00:03.1]} 55. Kxf6 {[%clk 0:00:05.9]}
55... Kc4 {[%clk 0:00:03.7]} 56. Kxg5 {[%clk 0:00:06.6]} 56... Kb5 {[%clk
0:00:04.6]} 57. Kf4 {[%clk 0:00:06.8]} 57... Kxa5 {[%clk 0:00:05.5]} 58. g5
{[%clk 0:00:07.5]} 58... Kb4 {[%clk 0:00:06.1]} 59. g6 {[%clk 0:00:08.4]} 59...
a5 {[%clk 0:00:06.7]} 60. g7 {[%clk 0:00:09.3]} 60... a4 {[%clk 0:00:07.5]} 61.
g8=Q {[%clk 0:00:10.2]} 61... a3 {[%clk 0:00:08.2]} 62. Qa2 {[%clk 0:00:10.3]}
1-0

[Event "Early-Titled-Tuesday-Blitz-February-13-2024"]
[Site "Chess.com"]
[Date "2024.02.13"]
[Round "4"]
[White "Cheer_Down"]
[Black "IngOscarArdila"]
[Result "1-0"]
[WhiteElo "2516"]
[BlackElo "2288"]
[TimeControl "180+1"]
[EndTime "8:44:02 PST"]
[Termination "Cheer_Down won on time"]

1. e4 {[%clk 0:02:58.3]} 1... e5 {[%clk 0:02:59.7]} 2. Nf3 {[%clk 0:02:55.8]}
2... Nf6 {[%clk 0:03:00]} 3. Nxe5 {[%clk 0:02:54.7]} 3... d6 {[%clk 0:03:00]} 4.
Nf3 {[%clk 0:02:54.5]} 4... Nxe4 {[%clk 0:03:00.4]} 5. c4 {[%clk 0:02:54.6]}
5... Be7 {[%clk 0:02:55.6]} 6. d4 {[%clk 0:02:50.6]} 6... O-O {[%clk 0:02:55]}
7. Bd3 {[%clk 0:02:49.6]} 7... Nf6 {[%clk 0:02:54.6]} 8. h3 {[%clk 0:02:42.7]}
8... Re8 {[%clk 0:02:53.9]} 9. O-O {[%clk 0:02:42.3]} 9... Nbd7 {[%clk
0:02:53.7]} 10. Nc3 {[%clk 0:02:38.2]} 10... Nf8 {[%clk 0:02:53.7]} 11. d5
{[%clk 0:02:35.3]} 11... a5 {[%clk 0:02:51.9]} 12. b3 {[%clk 0:02:29.9]} 12...
N8d7 {[%clk 0:02:52]} 13. Re1 {[%clk 0:02:26.1]} 13... Nc5 {[%clk 0:02:52.1]}
14. Bc2 {[%clk 0:02:26.3]} 14... Bd7 {[%clk 0:02:28.7]} 15. Nd4 {[%clk
0:02:18.1]} 15... Bf8 {[%clk 0:02:27.6]} 16. Rxe8 {[%clk 0:02:13.3]} 16... Qxe8
{[%clk 0:02:27.4]} 17. Be3 {[%clk 0:01:52.6]} 17... g6 {[%clk 0:02:25.4]} 18.
Qf3 {[%clk 0:01:50.7]} 18... Bg7 {[%clk 0:02:25.2]} 19. Re1 {[%clk 0:01:49.1]}
19... Qf8 {[%clk 0:02:17.3]} 20. Ncb5 {[%clk 0:01:46.2]} 20... Bxb5 {[%clk
0:02:16.2]} 21. Nxb5 {[%clk 0:01:45.3]} 21... Qe7 {[%clk 0:02:06.8]} 22. Bd2
{[%clk 0:01:43.9]} 22... Qd7 {[%clk 0:02:00.1]} 23. Bg5 {[%clk 0:01:33.8]} 23...
Re8 {[%clk 0:01:57.9]} 24. Re2 {[%clk 0:01:24.7]} 24... Rxe2 {[%clk 0:01:55]}
25. Qxe2 {[%clk 0:01:24.8]} 25... h6 {[%clk 0:01:51.1]} 26. Bd2 {[%clk
0:01:24.6]} 26... c6 {[%clk 0:01:43.1]} 27. dxc6 {[%clk 0:01:18.6]} 27... bxc6
{[%clk 0:01:44]} 28. Nc3 {[%clk 0:01:16.4]} 28... d5 {[%clk 0:01:39.8]} 29. cxd5
{[%clk 0:01:14.4]} 29... cxd5 {[%clk 0:01:39.9]} 30. Qb5 {[%clk 0:01:14.3]}
30... Qc7 {[%clk 0:01:10.2]} 31. Bd1 {[%clk 0:00:52.3]} 31... d4 {[%clk
0:01:05.8]} 32. Na4 {[%clk 0:00:44.5]} 32... Nxa4 {[%clk 0:01:05.7]} 33. Qxa4
{[%clk 0:00:44.6]} 33... Ne4 {[%clk 0:01:01.3]} 34. Qxa5 {[%clk 0:00:42.7]}
34... Qc8 {[%clk 0:00:33.5]} 35. Bf4 {[%clk 0:00:32]} 35... Nc3 {[%clk
0:00:28.9]} 36. Bf3 {[%clk 0:00:31.9]} 36... Qe8 {[%clk 0:00:25.2]} 37. Kf1
{[%clk 0:00:25.8]} 37... g5 {[%clk 0:00:25.2]} 38. Bd2 {[%clk 0:00:24.7]} 38...
Qe6 {[%clk 0:00:19.2]} 39. Qa8+ {[%clk 0:00:24]} 39... Bf8 {[%clk 0:00:15.2]}
40. Qc6 {[%clk 0:00:19.2]} 40... Qe5 {[%clk 0:00:11.2]} 41. a4 {[%clk
0:00:15.1]} 41... Bg7 {[%clk 0:00:04.4]} 42. Qa8+ {[%clk 0:00:10.8]} 42... Bf8
{[%clk 0:00:03.6]} 43. Bxc3 {[%clk 0:00:09.5]} 43... dxc3 {[%clk 0:00:03.6]} 44.
Qe4 {[%clk 0:00:10.1]} 44... Qc5 {[%clk 0:00:03.4]} 45. Qc2 {[%clk 0:00:09.6]}
45... Qb4 {[%clk 0:00:02.9]} 46. Be2 {[%clk 0:00:09.4]} 46... Bg7 {[%clk
0:00:03.4]} 47. g3 {[%clk 0:00:09.5]} 47... Qa3 {[%clk 0:00:03.8]} 48. Kg2
{[%clk 0:00:09.6]} 48... Qa1 {[%clk 0:00:04]} 49. Bd3 {[%clk 0:00:09.6]} 49...
Qa3 {[%clk 0:00:03.9]} 50. Bc4 {[%clk 0:00:09.8]} 50... Qb4 {[%clk 0:00:04.1]}
51. Qd3 {[%clk 0:00:08.4]} 51... Qb7+ {[%clk 0:00:04.1]} 52. Kh2 {[%clk
0:00:07.8]} 52... Qb6 {[%clk 0:00:03.7]} 53. Kg1 {[%clk 0:00:06]} 53... Qb7
{[%clk 0:00:02.3]} 54. a5 {[%clk 0:00:05.8]} 54... Qa7 {[%clk 0:00:02.1]} 55. a6
{[%clk 0:00:06]} 55... Bd4 {[%clk 0:00:01.7]} 56. Qg6+ {[%clk 0:00:05.5]} 56...
Kf8 {[%clk 0:00:01.5]} 57. Qxh6+ {[%clk 0:00:05.5]} 57... Ke8 {[%clk 0:00:02]}
58. Qxg5 {[%clk 0:00:05]} 1-0